fUSD/lending_fUSD_20251130
["ID","MTS","AMOUNT","RATE_DAILY","PERIOD"]
[395199112,1764537049001,-179.01901015,0.00016973,2]
[395199113,1764537049011,-500.0,0.00016973,2]
[395199114,1764537049020,-500.0,0.00016973,2]
[395199115,1764537049029,-498.99397056,0.00016973,2]
[395199116,1764537049039,-273.54418307,0.00016986,2]
[395199117,1764537049048,-251.67385662,0.00016986,2]
[395199118,1764537049057,-257.83404255,0.00016986,2]
[395199119,1764537049067,-151.01025846,0.00016986,2]
[395199120,1764537049076,-274.74372107,0.00016986,2]
[395199121,1764537049085,-159.46069334,0.00016986,2]
[395199122,1764537049095,-165.9240385,0.00016986,2]
[395199123,1764537049104,-167.57424842,0.00016986,2]
[395199124,1764537049114,-150.37128175,0.00016986,2]
[395199125,1764537049123,-171.5497114,0.00016986,2]
[395199126,1764537049132,-272.71931474,0.00016986,2]
[395199127,1764537049141,-151.54770866,0.00016986,2]
[395199128,1764537049152,-158.64772779,0.00016986,2]
[395199129,1764537049161,-158.25215809,0.00016986,2]
[395199130,1764537049170,-247.88854208,0.00016986,2]
[395199131,1764537049179,-492.9693918,0.0001699,2]
[395199132,1764537049189,-492.9693918,0.0001699,2]
[395199133,1764537049199,-547.6904879,0.00016994,2]
[395199134,1764537049208,-151.0,0.00016997,2]
[395199135,1764537049217,-1000.0,0.00016999,2]
[395199136,1764537049227,-231.83347088,0.00016999,2]
[395199137,1764537049236,-500.0,0.00016999,2]
[395199138,1764537049245,-500.0,0.00016999,2]
[395199139,1764537049253,-387.25737973,0.00016999,2]
[395199140,1764537049262,-500.0,0.00016999,2]
[395199141,1764537049272,-500.0,0.00016999,2]
[395199142,1764537049281,-500.0,0.00016999,2]
[395199143,1764537049290,-500.0,0.00016999,2]
[395199144,1764537049299,-500.0,0.00016999,2]
[395199145,1764537049308,-500.0,0.00016999,2]
[395199146,1764537049317,-500.0,0.00016999,2]
[395199147,1764537049326,-500.0,0.00016999,2]
[395199148,1764537049335,-500.0,0.00016999,2]
[395199149,1764537049344,-500.0,0.00016999,2]
[395199150,1764537049354,-500.0,0.00016999,2]
[395199151,1764537049363,-500.0,0.00016999,2]
[395199152,1764537049372,-500.0,0.00016999,2]
[395199153,1764537049381,-584.28639426,0.00016999,2]
[395199154,1764537049390,-503.7,0.00016999,2]
[395199155,1764537049400,-503.7,0.00016999,2]
[395199156,1764537049410,-503.7,0.00016999,2]
[395199157,1764537049419,-503.7,0.00016999,2]
[395199158,1764537049429,-503.7,0.00016999,2]
[395199159,1764537049442,-503.7,0.00016999,2]
[395199160,1764537049453,-503.7,0.00016999,2]
[395199161,1764537049462,-503.7,0.00016999,2]
[395199162,1764537049471,-503.7,0.00016999,2]
[395199163,1764537049483,-503.7,0.00016999,2]
[395199164,1764537049492,-503.7,0.00016999,2]
[395199165,1764537049501,-503.7,0.00016999,2]
[395199166,1764537049510,-503.7,0.00016999,2]
[395199167,1764537049520,-503.7,0.00016999,2]
[395199168,1764537049530,-503.7,0.00016999,2]
[395199169,1764537049539,-503.7,0.00016999,2]
[395199170,1764537049548,-503.7,0.00016999,2]
[395199171,1764537049557,-503.81196907,0.00016999,2]
[395199172,1764537049566,-500.0,0.00016999,2]
[395199173,1764537049575,-500.0,0.00016999,2]
[395199174,1764537049585,-500.0,0.00016999,2]
[395199175,1764537049594,-500.0,0.00016999,2]
[395199176,1764537049603,-500.0,0.00016999,2]
[395199177,1764537049612,-523.46773215,0.00016999,2]
[395199178,1764537049621,-500.0,0.00016999,2]
[395199179,1764537049630,-500.0,0.00016999,2]
[395199180,1764537049639,-500.0,0.00016999,2]
[395199181,1764537049650,-500.0,0.00016999,2]
[395199182,1764537049659,-500.0,0.00016999,2]
[395199183,1764537049669,-519.79569884,0.00016999,2]
[395199184,1764537049678,-500.0,0.00016999,2]
[395199185,1764537049688,-500.0,0.00016999,2]
[395199186,1764537049698,-500.0,0.00016999,2]
[395199187,1764537049707,-300.0,0.00016999,2]
[395199188,1764537049716,-500.0,0.00016999,2]
[395199189,1764537049726,-460.75678549,0.00016999,2]
[395199190,1764537049735,-300.0,0.00016999,2]
[395199191,1764537049744,-300.0,0.00016999,2]
[395199192,1764537049754,-300.0,0.00016999,2]
[395199193,1764537049762,-2978203.64213704,0.00017,2]
[395199194,1764537050892,-995.02582332,0.00017,2]
[395199195,1764537050959,-153.0,0.00016395,2]
[395199196,1764537050968,-500.0,0.00016973,2]
[395199197,1764537050978,-201.11548058,0.00016973,2]
[395199198,1764537050987,-1206.00994988,0.00017,2]
[395199199,1764537050999,-7765.01788975,0.00017,2]
[395199200,1764537051009,-81612.762,0.00017,2]
[395199201,1764537051020,-1297.56,0.00017,2]
[395199202,1764537051031,-1318.6419865,0.00017,2]
[395199203,1764537051042,-86166.00000003,0.00017,2]
[395199204,1764537051052,-10790.29324873,0.00017,2]
[395199205,1764537051072,-3594291.34332307,0.00017,2]
[395199206,1764537051271,-785.0,0.00016235,2]
[395199207,1764537051290,-14969.32968026,0.00016235,2]
[395199208,1764537051300,-8210.22991732,0.00017,2]
[395199209,1764537051861,-15490.68328856,0.00017,2]
[395199210,1764537051873,-3823.6956959,0.00017,2]
[395199211,1764537051884,-12040.04440058,0.00017,2]
[395199212,1764537051895,-145386.78730883,0.00017,2]
[395199213,1764537051906,-457.8,0.00017,2]
[395199214,1764537051917,-500.0,0.00017,2]
[395199215,1764537918006,283.65,7.327e-05,2]
[395199216,1764537918214,283.65,7.713e-05,2]
[395199217,1764537918424,283.65,8.099e-05,2]
[395199218,1764537918634,283.65,8.484e-05,2]
[395199219,1764537918867,283.65,8.87e-05,2]
[395199220,1764537919158,283.65,9.256e-05,2]
[395199221,1764537919398,283.65,9.641e-05,2]
[395199222,1764537919604,283.65,0.00010027,2]
[395199223,1764537919798,283.65,0.00010412,2]
[395199224,1764537920013,283.65,0.00010798,2]
[395199225,1764537920686,283.65,0.00011184,2]
[395199226,1764537921818,283.65,0.00011569,2]
[395199227,1764537921870,283.65,0.00011955,2]
[395199228,1764537933709,1343.63,0.00012009,2]
[395199229,1764537961307,13447.49798295,8e-05,2]
[395199231,1764538119415,5382.78158701,0.0001,2]
[395199232,1764538180669,150.0,8.99e-05,120]
[395199251,1764538231870,-283.65,0.00012341,2]
[395199253,1764538231880,-250.0,0.00012534,2]
[395199255,1764538231889,-283.65,0.00012726,2]
[395199256,1764538231899,-250.0,0.00013107,2]
[395199257,1764538231909,-283.65,0.00013112,2]
[395199258,1764538231918,-283.65,0.00013498,2]
[395199259,1764538231928,-250.0,0.00013575,2]
[395199260,1764538231937,-1000.0,0.00013733,2]
[395199261,1764538231947,-197.82196213,0.00013858,2]
[395199262,1764538231956,-283.65,0.00013883,2]
[395199263,1764538231966,-500.0,0.00013999,2]
[395199264,1764538231975,-402.74870176,0.00014007,2]
[395199265,1764538232017,-97.25129824,0.00014007,2]
[395199266,1764538232027,-500.0,0.00014007,2]
[395199267,1764538232037,-383.85,0.00014007,2]
[395199268,1764538232046,-1200.0,0.00014055,2]
[395199269,1764538232055,-325.31446045,0.00014056,2]
[395199270,1764538232067,-174.68553955,0.00014056,2]
[395199271,1764538232077,-230.46098837,0.00014269,2]
[395199272,1764538232091,-53.18901163,0.00014269,2]
[395199273,1764538232101,-295.12475849,0.00014313,2]
[395199274,1764538232145,-63.98507085,0.00014313,2]
[395199275,1764538232154,-331.86558707,0.000146,2]
[395199276,1764538232169,-283.65,0.00014655,2]
[395199278,1764538232179,-147.55895497,0.00014897,2]
[395199282,1764538232216,-152.44104503,0.00014897,2]
[395199285,1764538232229,-300.0,0.00014897,2]
[395199286,1764538232239,-300.0,0.00014897,2]
[395199288,1764538232249,-150.0,0.00014898,2]
[395199291,1764538232258,-500.0,0.00014898,2]
[395199294,1764538232268,-500.0,0.00014898,2]
[395199297,1764538232277,-500.0,0.00014898,2]
[395199300,1764538232286,-500.0,0.00014898,2]
[395199303,1764538232297,-500.0,0.00014898,2]
[395199306,1764538232306,-500.0,0.00014898,2]
[395199309,1764538232316,-500.0,0.00014898,2]
[395199310,1764538232325,-1000.0,0.00014899,2]
[395199311,1764538232334,-178.00564801,0.00014899,2]
[395199312,1764538232344,-203.63156,0.00014899,2]
[395199313,1764538232353,-541.7515132,0.00014899,2]
[395199314,1764538232362,-197.82196213,0.000149,2]
[395199315,1764538232371,-499.99,0.000149,2]
[395199316,1764538232381,-9999.99,0.000149,2]
[395199317,1764538232391,-9999.99,0.000149,2]
[395199318,1764538232401,-1819.11,0.000149,2]
[395199319,1764538232411,-19492.25,0.000149,2]
[395199320,1764538232420,-3796.27,0.000149,2]
[395199321,1764538232430,-9999.99,0.000149,2]
[395199322,1764538232440,-150.99,0.000149,2]
[395199323,1764538232450,-1675.22,0.000149,2]
[395199324,1764538232459,-299.99,0.000149,2]
[395199325,1764538232471,-2942.24,0.000149,2]
[395199326,1764538232482,-1430.03,0.000149,2]
[395199327,1764538232491,-225.29829185,0.000149,2]
[395199328,1764538232505,-167.51566656,0.000149,2]
[395199329,1764538232523,-33299.67635381,0.00015,4]
[395199330,1764538232534,-5127.16622399,0.00015,4]
[395199331,1764538232546,-54258.49707495,0.00015,4]
[395199332,1764538232569,-203.86136513,0.00014898,2]
[395199333,1764538232578,-166.13863487,0.00015,4]
[395199334,1764538238122,-500.0,0.00014898,2]
[395199335,1764538238131,-500.0,0.00014898,2]
[395199336,1764538238141,-500.0,0.00014898,2]
[395199337,1764538238150,-500.0,0.00014898,2]
[395199338,1764538238159,-500.0,0.00014898,2]
[395199339,1764538238169,-500.0,0.00014898,2]
[395199340,1764538238178,-500.0,0.00014898,2]
[395199341,1764538238190,-2363.07614403,0.000149,2]
[395199342,1764538238199,-80258.06800467,0.00015,4]
[395199343,1764538238211,-472.57655813,0.00015,4]
[395199344,1764538238223,-15279.85719558,0.00015,4]
[395199345,1764538238234,-3117.23777216,0.00015,4]
[395199346,1764538238264,-3106.41718593,0.00015,4]
[395199347,1764538238276,-900.0,0.00015,4]
[395199348,1764538238287,-1075.98674076,0.00015,4]
[395199349,1764538238298,-45866.7203699,0.00015,4]
[395199350,1764538238308,-9999.999999,0.00015,2]
[395199351,1764538238317,-150.0,0.00015138,2]
[395199352,1764538238326,-999.0,0.00015282,3]
[395199353,1764538238336,-151.0,0.00015289,2]
[395199354,1764538238345,-5822.03,0.00015298,2]
[395199355,1764538238355,-1517.64,0.000153,2]
[395199356,1764538238365,-8947.85985571,0.000153,2]
[395199358,1764538238375,-7652.65,0.00015342,2]
[395199360,1764538238385,-453.7183834,0.00015342,2]
[395199361,1764538238394,-11857.78639408,0.000154,2]
[395199362,1764538238404,-504.53167572,0.000154,2]
[395199363,1764538238413,-1000.0,0.0001545,2]
[395199364,1764538238423,-1680.0,0.0001546,2]
[395199365,1764538238433,-8947.85985562,0.00015478,2]
[395199366,1764538238443,-1949.07,0.00015512,2]
[395199367,1764538238452,-167.51566654,0.00015567,2]
[395199368,1764538238462,-8947.85985562,0.00015656,2]
[395199369,1764538238471,-8947.85985562,0.00015833,2]
[395199370,1764538238481,-151.0,0.00015837,2]
[395199371,1764538238490,-1250.0,0.00015847,2]
[395199372,1764538238499,-1250.0,0.00015847,2]
[395199373,1764538238508,-3898.97,0.00015865,2]
[395199374,1764538238517,-328.59908711,0.000159,2]
[395199375,1764538238526,-501.71453986,0.00016,2]
[395199376,1764538238536,-23666.07387272,0.00016,2]
[395199377,1764538238545,-217943.91760979,0.00016,2]
[395199378,1764538238554,-265893.91621147,0.00016,4]
[395199379,1764538238563,-8947.85985562,0.00016011,2]
[395199380,1764538238573,-255.0,0.0001603,2]
[395199381,1764538238582,-492.9693918,0.00016038,2]
[395199382,1764538238592,-800.2773,0.00016048,2]
[395199383,1764538238601,-1643.52,0.00016048,2]
[395199384,1764538238610,-760000.0,0.00016048,2]
[395199385,1764538238620,-1182.52,0.00016116,2]
[395199386,1764538238629,-200.0,0.00016129,2]
[395199387,1764538238638,-500.0,0.00016129,2]
[395199388,1764538238648,-500.0,0.00016129,2]
[395199389,1764538238657,-500.0,0.00016129,2]
[395199390,1764538238666,-500.0,0.00016129,2]
[395199391,1764538238675,-500.0,0.00016129,2]
[395199392,1764538238684,-500.0,0.00016129,2]
[395199393,1764538238694,-500.0,0.00016129,2]
[395199394,1764538238703,-500.0,0.00016129,2]
[395199395,1764538238712,-500.0,0.00016129,2]
[395199396,1764538238722,-500.0,0.00016129,2]
[395199397,1764538238731,-500.0,0.00016129,2]
[395199398,1764538238741,-500.0,0.00016129,2]
[395199399,1764538238752,-500.0,0.00016129,2]
[395199400,1764538238761,-500.0,0.00016129,2]
[395199401,1764538238771,-500.0,0.00016129,2]
[395199402,1764538238780,-500.0,0.00016129,2]
[395199403,1764538238789,-500.0,0.00016129,2]
[395199404,1764538238798,-500.0,0.00016129,2]
[395199405,1764538238808,-500.0,0.00016129,2]
[395199406,1764538238817,-500.0,0.00016129,2]
[395199407,1764538238826,-500.0,0.00016129,2]
[395199408,1764538238835,-500.0,0.00016129,2]
[395199409,1764538238845,-500.0,0.00016129,2]
[395199410,1764538238854,-500.0,0.00016129,2]
[395199411,1764538238864,-500.0,0.00016129,2]
[395199412,1764538238873,-500.0,0.00016129,2]
[395199413,1764538238883,-200.0,0.00016129,2]
[395199414,1764538238893,-200.0,0.00016129,2]
[395199415,1764538238902,-151.0,0.00016129,2]
[395199416,1764538238912,-151.0,0.00016129,2]
[395199417,1764538238921,-151.0,0.00016129,2]
[395199418,1764538238931,-151.0,0.00016129,2]
[395199419,1764538238940,-151.0,0.00016129,2]
[395199420,1764538238950,-151.0,0.00016129,2]
[395199421,1764538238959,-151.0,0.00016129,2]
[395199422,1764538238968,-151.0,0.00016129,2]
[395199423,1764538238978,-151.0,0.00016129,2]
[395199424,1764538238988,-151.0,0.00016129,2]
[395199425,1764538238997,-151.0,0.00016129,2]
[395199426,1764538239007,-151.0,0.00016129,2]
[395199427,1764538239016,-151.0,0.00016129,2]
[395199428,1764538239026,-151.0,0.00016129,2]
[395199429,1764538239035,-151.0,0.00016129,2]
[395199430,1764538239045,-151.0,0.00016129,2]
[395199431,1764538239054,-151.0,0.00016129,2]
[395199432,1764538239063,-151.0,0.00016129,2]
[395199433,1764538239073,-165.25228523,0.00016129,2]
[395199434,1764538239084,-151.0,0.00016129,2]
[395199435,1764538239093,-151.0,0.00016129,2]
[395199436,1764538239104,-151.0,0.00016129,2]
[395199437,1764538239113,-151.0,0.00016129,2]
[395199438,1764538239122,-151.0,0.00016129,2]
[395199439,1764538239131,-151.0,0.00016129,2]
[395199440,1764538239141,-151.0,0.00016129,2]
[395199441,1764538239151,-151.0,0.00016129,2]
[395199442,1764538239161,-151.0,0.00016129,2]
[395199443,1764538239171,-151.0,0.00016129,2]
[395199444,1764538239180,-151.0,0.00016129,2]
[395199445,1764538239189,-151.0,0.00016129,2]
[395199446,1764538239199,-151.0,0.00016129,2]
[395199447,1764538239208,-257.91778498,0.00016149,2]
[395199448,1764538239218,-250.0,0.00016149,2]
[395199449,1764538239228,-250.0,0.00016149,2]
[395199450,1764538239237,-160.0,0.00016149,2]
[395199451,1764538239247,-250.0,0.00016149,2]
[395199452,1764538239256,-250.0,0.00016149,2]
[395199453,1764538239265,-250.0,0.00016149,2]
[395199454,1764538239274,-250.0,0.00016149,2]
[395199455,1764538239283,-250.0,0.00016149,2]
[395199456,1764538239293,-250.0,0.00016149,2]
[395199457,1764538239303,-250.0,0.00016149,2]
[395199458,1764538239312,-250.0,0.00016149,2]
[395199459,1764538239321,-250.0,0.00016149,2]
[395199460,1764538239330,-250.0,0.00016149,2]
[395199461,1764538239340,-322.6107,0.00016149,2]
[395199462,1764538239349,-250.0,0.00016149,2]
[395199463,1764538239359,-250.0,0.00016149,2]
[395199464,1764538239368,-250.0,0.00016149,2]
[395199465,1764538239377,-250.0,0.00016149,2]
[395199466,1764538239387,-250.0,0.00016149,2]
[395199467,1764538239397,-250.0,0.00016149,2]
[395199468,1764538239406,-250.0,0.00016149,2]
[395199469,1764538239415,-250.0,0.00016149,2]
[395199470,1764538239425,-250.0,0.00016149,2]
[395199471,1764538239434,-250.0,0.00016149,2]
[395199472,1764538239443,-250.0,0.00016149,2]
[395199473,1764538239453,-250.0,0.00016149,2]
[395199474,1764538239462,-151.0,0.00016149,2]
[395199475,1764538239471,-250.0,0.00016149,2]
[395199476,1764538239480,-250.0,0.00016149,2]
[395199477,1764538239489,-250.0,0.00016149,2]
[395199478,1764538239498,-250.0,0.00016149,2]
[395199479,1764538239507,-250.0,0.00016149,2]
[395199480,1764538239516,-250.0,0.00016149,2]
[395199481,1764538239525,-250.0,0.00016149,2]
[395199482,1764538239534,-194.72792766,0.00016149,2]
[395199483,1764538239543,-250.0,0.00016149,2]
[395199484,1764538239552,-250.0,0.00016149,2]
[395199485,1764538239561,-250.0,0.00016149,2]
[395199486,1764538239570,-250.0,0.00016149,2]
[395199487,1764538239579,-578.20924308,0.00016149,2]
[395199488,1764538239588,-250.0,0.00016149,2]
[395199489,1764538239598,-500.0,0.00016149,2]
[395199490,1764538239607,-1000.0,0.00016149,2]
[395199491,1764538239616,-250.0,0.00016149,2]
[395199492,1764538239625,-500.0,0.00016149,2]
[395199493,1764538239634,-151.0,0.00016149,2]
[395199494,1764538239643,-1000.0,0.00016149,2]
[395199495,1764538239652,-250.0,0.00016149,2]
[395199496,1764538239661,-500.0,0.00016149,2]
[395199497,1764538239671,-151.0,0.00016149,2]
[395199498,1764538239680,-1000.0,0.00016149,2]
[395199499,1764538239689,-250.0,0.00016149,2]
[395199500,1764538239699,-500.0,0.00016149,2]
[395199501,1764538239708,-151.0,0.00016149,2]
[395199502,1764538239717,-1000.0,0.00016149,2]
[395199503,1764538239731,-500.0,0.00016149,2]
[395199504,1764538239740,-151.0,0.00016149,2]
[395199505,1764538239750,-1000.0,0.00016149,2]
[395199506,1764538239759,-500.0,0.00016149,2]
[395199507,1764538239769,-151.0,0.00016149,2]
[395199508,1764538239779,-1000.0,0.00016149,2]
[395199509,1764538239788,-500.0,0.00016149,2]
[395199510,1764538239798,-151.0,0.00016149,2]
[395199511,1764538239807,-1000.0,0.00016149,2]
[395199512,1764538239818,-500.0,0.00016149,2]
[395199513,1764538239827,-151.0,0.00016149,2]
[395199514,1764538239837,-1000.0,0.00016149,2]
[395199516,1764538239847,-500.0,0.00016149,2]
[395199517,1764538239856,-151.0,0.00016149,2]
[395199518,1764538239866,-1000.0,0.00016149,2]
[395199519,1764538239876,-500.0,0.00016149,2]
[395199520,1764538239885,-151.0,0.00016149,2]
[395199521,1764538239895,-1000.0,0.00016149,2]
[395199522,1764538239905,-500.0,0.00016149,2]
[395199523,1764538239914,-500.0,0.00016149,2]
[395199524,1764538239923,-151.0,0.00016149,2]
[395199525,1764538239933,-1000.0,0.00016149,2]
[395199526,1764538239944,-497.73015309,0.00016149,2]
[395199527,1764538239953,-151.0,0.00016149,2]
[395199528,1764538239963,-1000.0,0.00016149,2]
[395199529,1764538239972,-500.0,0.00016149,2]
[395199530,1764538239981,-151.0,0.00016149,2]
[395199531,1764538239990,-500.0,0.00016149,2]
[395199532,1764538240000,-151.0,0.00016149,2]
[395199533,1764538240009,-1000.0,0.00016149,2]
[395199534,1764538240018,-151.0,0.00016149,2]
[395199535,1764538240028,-500.0,0.00016149,2]
[395199536,1764538240037,-151.0,0.00016149,2]
[395199537,1764538240046,-500.0,0.00016149,2]
[395199538,1764538240055,-151.0,0.00016149,2]
[395199539,1764538240064,-500.0,0.00016149,2]
[395199540,1764538240075,-500.0,0.00016149,2]
[395199541,1764538240084,-500.0,0.00016149,2]
[395199542,1764538240093,-500.0,0.00016149,2]
[395199543,1764538240102,-500.0,0.00016149,2]
[395199544,1764538240115,-151.0,0.00016149,2]
[395199545,1764538240125,-500.0,0.00016149,2]
[395199546,1764538240134,-500.0,0.00016149,2]
[395199547,1764538240143,-1000.0,0.00016149,2]
[395199548,1764538240154,-500.0,0.00016149,2]
[395199549,1764538240163,-1000.0,0.00016149,2]
[395199550,1764538240172,-1000.0,0.00016149,2]
[395199551,1764538240181,-151.0,0.00016149,2]
[395199552,1764538240191,-3000.0,0.00016149,2]
[395199553,1764538240200,-1000.0,0.00016149,2]
[395199554,1764538240209,-1000.0,0.00016149,2]
[395199555,1764538240219,-1000.0,0.00016149,2]
[395199556,1764538240229,-1000.0,0.00016149,2]
[395199557,1764538240238,-300.0,0.00016149,2]
[395199558,1764538240247,-1000.0,0.00016149,2]
[395199559,1764538240257,-1000.0,0.00016149,2]
[395199560,1764538240266,-1000.0,0.00016149,2]
[395199561,1764538240275,-1000.0,0.00016149,2]
[395199562,1764538240285,-1000.0,0.00016149,2]
[395199563,1764538240295,-1000.0,0.00016149,2]
[395199564,1764538240305,-660.0,0.00016149,2]
[395199565,1764538240314,-642.94,0.00016149,2]
[395199566,1764538240324,-194.72792766,0.00016149,2]
[395199567,1764538240333,-500.0,0.00016149,2]
[395199568,1764538240342,-500.0,0.00016149,2]
[395199569,1764538240351,-500.0,0.00016149,2]
[395199571,1764538240361,-500.0,0.00016149,2]
[395199573,1764538240371,-500.0,0.00016149,2]
[395199575,1764538240380,-500.0,0.00016149,2]
[395199576,1764538240389,-500.0,0.00016149,2]
[395199577,1764538240398,-500.0,0.00016149,2]
[395199578,1764538240408,-500.0,0.00016149,2]
[395199579,1764538240417,-500.0,0.00016149,2]
[395199580,1764538240427,-500.0,0.00016149,2]
[395199581,1764538240436,-500.0,0.00016149,2]
[395199582,1764538240445,-500.0,0.00016149,2]
[395199583,1764538240455,-8947.85985562,0.00016189,2]
[395199584,1764538240464,-5000.00947869,0.000162,5]
[395199585,1764538240473,-167.51566654,0.00016233,2]
[395199586,1764538240482,-420.0,0.00016306,2]
[395199587,1764538240492,-250.0,0.00016306,2]
[395199589,1764538240502,-200.0,0.0001634,2]
[395199591,1764538240512,-8947.85985562,0.00016367,2]
[395199593,1764538240522,-151.0,0.00016385,2]
[395199594,1764538240532,-168.0,0.00016431,2]
[395199595,1764538240542,-500.0,0.00016438,2]
[395199596,1764538240553,-500.0,0.00016438,2]
[395199597,1764538240563,-500.0,0.00016438,2]
[395199598,1764538240572,-500.0,0.00016438,2]
[395199599,1764538240582,-587.72710204,0.00016438,2]
[395199600,1764538240591,-5434.75,0.00016438,2]
[395199601,1764538240601,-171.18,0.00016438,2]
[395199602,1764538240611,-1000.0,0.0001653,2]
[395199603,1764538240620,-8947.85985562,0.00016544,2]
[395199604,1764538240629,-1269.135,0.00016557,2]
[395199605,1764538240639,-169.9534785,0.00016557,2]
[395199606,1764538240648,-150.0,0.00016575,2]
[395199607,1764538240658,-1998.22847857,0.000166,2]
[395199608,1764538240667,-792.09493823,0.0001663,5]
[395199609,1764538240676,-2647.7093,0.0001663,2]
[395199610,1764538240686,-5819.75713072,0.00016636,2]
[395199611,1764538240695,-200.0,0.00016677,2]
[395199612,1764538240704,-200.0,0.00016677,2]
[395199613,1764538240714,-151.0,0.00016697,2]
[395199614,1764538240723,-216.34272767,0.00016697,2]
[395199615,1764538240732,-151.0,0.00016697,2]
[395199616,1764538240741,-151.0,0.00016697,2]
[395199617,1764538240751,-3000.0,0.00016697,2]
[395199618,1764538240760,-201.93286099,0.00016697,2]
[395199619,1764538240769,-160.56075218,0.00016712,2]
[395199620,1764538240779,-222.75,0.00016712,2]
[395199621,1764538240788,-8947.85985562,0.00016722,2]
[395199622,1764538240798,-151.0,0.00016727,2]
[395199623,1764538240807,-500.0,0.00016729,2]
[395199624,1764538240816,-500.0,0.00016729,2]
[395199625,1764538240825,-387.25737973,0.00016729,2]
[395199626,1764538240835,-500.0,0.00016729,2]
[395199627,1764538240844,-500.0,0.00016729,2]
[395199628,1764538240854,-500.0,0.00016729,2]
[395199629,1764538240863,-500.0,0.00016729,2]
[395199630,1764538240872,-500.0,0.00016729,2]
[395199631,1764538240881,-500.0,0.00016729,2]
[395199632,1764538240891,-500.0,0.00016729,2]
[395199633,1764538240900,-500.0,0.00016729,2]
[395199634,1764538240909,-500.0,0.00016729,2]
[395199635,1764538240918,-500.0,0.00016729,2]
[395199636,1764538240927,-500.0,0.00016729,2]
[395199637,1764538240937,-500.0,0.00016729,2]
[395199638,1764538240946,-500.0,0.00016729,2]
[395199639,1764538240955,-500.0,0.00016729,2]
[395199640,1764538240965,-500.0,0.00016729,2]
[395199641,1764538240974,-500.0,0.00016729,2]
[395199642,1764538240984,-500.0,0.00016729,2]
[395199643,1764538240993,-500.0,0.00016729,2]
[395199644,1764538241002,-500.0,0.00016729,2]
[395199645,1764538241012,-500.0,0.00016729,2]
[395199646,1764538241021,-532.59351283,0.00016729,2]
[395199647,1764538241030,-500.0,0.00016729,2]
[395199648,1764538241040,-319.34909176,0.00016729,2]
[395199649,1764538241050,-600.0,0.0001673,2]
[395199650,1764538241059,-168.0,0.00016743,2]
[395199651,1764538241068,-2970.36,0.000168,2]
[395199652,1764538241078,-1000.0,0.000168,2]
[395199653,1764538241088,-500.0,0.00016829,2]
[395199654,1764538241097,-500.0,0.00016829,2]
[395199655,1764538241108,-500.0,0.00016829,2]
[395199656,1764538241119,-500.0,0.00016829,2]
[395199657,1764538241127,-460.75678549,0.00016829,2]
[395199658,1764538241138,-99098.73461625,0.0001683,2]
[395199659,1764538241147,-3606.8619,0.0001683,2]
[395199660,1764538241158,-698.31665151,0.00016862,2]
[395199661,1764538241167,-200.0,0.00016863,2]
[395199662,1764538241178,-200.0,0.00016864,2]